[Event "FIJ Cannes 2024"]
[Site "Cannes"]
[Date "2024.02.21"]
[Round "4.2"]
[White "Zhao, Yuanhe"]
[Black "Sasikiran, Krishnan"]
[Result "1-0"]
[ECO "D30"]
[WhiteElo "2449"]
[BlackElo "2586"]
[Annotator "TA"]
[PlyCount "83"]
[EventDate "2024.02.20"]
[EventType "swiss"]
[EventCountry "FRA"]
[SourceTitle "playchess.com"]
[Source "ChessBase"]
[SourceQuality "1"]
[TimeControl "40/5400+30:1800+30"]

{[%evp 16,83,-21,-12,-8,-4,0,0,0,0,0,0,0,0,6,0,21,1,21,11,16,12,64,73,96,38,36,40,60,60,68,47,50,34,47,0,110,104,269,273,264,294,281,270,277,266,400,375,434,417,443,456,453,444,461,445,526,515,427,279,257,225,521,519,576,458,474,472,607,596]} 1. Nf3 {[%emt 0:04:29]} d5 {[%emt 0:00:07]} 2. e3 {[%emt 0:00:28]} c5 {[%emt 0:00:41]} 3. d4 {[%emt 0:01:04]} Nf6 {[%emt 0:00:32]} 4. dxc5 {[%emt 0:02:23]} e6 {[%emt 0:00:36]} 5. c4 {[%emt 0:01:07]} Bxc5 {[%emt 0:01:46]} 6. a3 {[%emt 0:01:57]} O-O {[%emt 0:02:51]} 7. b4 {[%emt 0:00:26]} Be7 {[%emt 0:02:00]} 8. Bb2 {[%emt 0:02:00]} b6 {[%emt 0:07:51]} 9. Nbd2 {[%emt 0:03:06]} Bb7 {[%emt 0:03:29]} 10. Be2 {[%emt 0:02:26]} a5 {[%emt 0:07:21]} 11. b5 {[%emt 0:00:25]} Nbd7 {[%emt 0:02:02] The position is equal.} 12. O-O {[%emt 0:00:15]} Rc8 {[%emt 0:02:07]} 13. Rc1 {[%emt 0:01:31]} Bc5 {[%emt 0:07:32]} 14. Qa4 {[%emt 0:07:10]} Qe7 {[%emt 0:07:42]} 15. cxd5 {[%emt 0:06:44]} Nxd5 {[%emt 0:11:07]} 16. Nd4 {[%emt 0:08:21]} Bxd4 {[%emt 0:07:37]} 17. Qxd4 {[%emt 0:00:27][%csl Gb2][%cal Rd4g7]} e5 {[%emt 0:02:18]} 18. Qg4 {[%emt 0:00:57]} Nc5 {[%emt 0:04:26]} (18... N5f6 $11 19. Qf5 h6) 19. Nc4 $40 {[%emt 0:13:55][%mdl 128] White goes for the king. White is more active.} f6 {[%emt 0:05:28] [#]} 20. Rfd1 {[%emt 0:01:05]} (20. a4 $1 $16) 20... Rcd8 {[%emt 0:03:11]} 21. Bf1 {[%emt 0:07:56]} Kh8 {[%emt 0:05:15]} 22. Qh4 {[%emt 0:02:04]} Rfe8 {[%emt 0:02:52]} 23. e4 {[%emt 0:16:41]} (23. a4 $5 Nxa4 24. Nxe5 fxe5 25. Qxa4 $14) 23... g5 $1 {[%emt 0:04:24]} (23... Nf4 $2 24. Nxe5 Rxd1 25. Rxd1 $18) 24. Qh6 {[%emt 0:03:46]} (24. Qg4 Nf4) 24... Nxe4 {[%emt 0:04:33]} 25. Re1 {[%emt 0:00:56]} (25. a4 $1 $14 {might be stronger.}) 25... Nc5 {[%emt 0:01:33]} (25... Nf4 $1 $11 {keeps the balance.}) 26. Nxb6 {[%emt 0:03:25]} Ne6 {[%emt 0:02:46] [#] A mistake that costs the game.} (26... Nxb6 $16 27. Rxc5 Nd5) 27. Nc4 $1 $18 {[%emt 0:02:33]} Qg7 {[%emt 0:01:08]} 28. Qxg7+ {[%emt 0:00:05]} Kxg7 {[%emt 0:00:03]} 29. Nxa5 {[%emt 0:00:07]} Ba8 {[%emt 0:00:28]} 30. Nc6 {[%emt 0:01:50]} Bxc6 {[%emt 0:00:07]} (30... Rc8 $142 31. Red1 Bxc6) 31. Rxc6 {[%emt 0:00:34]} (31. bxc6 Rb8 $18) 31... Nd4 {[%emt 0:00:27]} 32. Bxd4 {[%emt 0:01:50]} exd4 {[%emt 0:00:07]} 33. Rxe8 {[%emt 0:00:05]} Rxe8 {[%emt 0:00:03][%mdl 4096] Endgame. KRB-KRN} 34. Rd6 {[%emt 0:00:09]} Nc3 {[%emt 0:00:04]} 35. g3 {[%emt 0:00:11]} (35. Rxd4 Re1 36. Rd7+ Kf8 $18) 35... Re1 {[%emt 0:00:35]} 36. Kg2 {[%emt 0:00:04]} (36. Rxd4 $2 Ne2+ (36... Nxb5 $2 37. Rd7+ Kh6 38. a4 $18) 37. Kg2 Nxd4 $19) 36... Rb1 {[%emt 0:00:14]} 37. Rd7+ {[%emt 0:00:12]} Kf8 {[%emt 0:00:09]} 38. Bd3 {[%emt 0:02:30]} (38. Rxd4 Nxb5 39. Ra4 h5 $18) 38... Rb2 {[%emt 0:00:03]} (38... Rb3 {was called for.} 39. Bc4 (39. Bxh7 Rxb5 40. Rxd4 Ra5 $16) (39. Rxd4 Nxb5 40. Bxb5 Rxb5 $16) 39... Rb1 40. Rxd4 Nxb5) 39. Rxd4 {[%emt 0:00:51] White is clearly winning.} (39. Rxh7 Nd1 $18) 39... Nd1 {[%emt 0:00:04] [#]} 40. Be2 $1 {[%emt 0:01:26][%mdl 512]} Nc3 {[%emt 0:00:04]} (40... Rxe2 41. Rxd1) 41. Bf1 {[%emt 0:31:22]} Nxb5 {[%emt 0:30:31]} 42. Rd8+ {[%emt 0:00:21] Weighted Error Value: White=0.14 (very precise) /Black=0.42.  Loses game:     	---       	Black=1      Mistake:       	White=2     	Black=4      Inaccurate:     	White=1     	---        OK:         	White=16    	Black=7      Best:        	White=1     	Black=2      Strong:       	White=1     	Black=1} 1-0

[Event "FIJ Cannes 2024"]
[Site "Cannes"]
[Date "2024.02.21"]
[Round "4.3"]
[White "Garifullina, Leya"]
[Black "Bharath Subramaniyam H"]
[Result "1/2-1/2"]
[ECO "C60"]
[WhiteElo "2422"]
[BlackElo "2515"]
[Annotator "RC"]
[PlyCount "130"]
[EventDate "2024.02.20"]
[EventType "swiss"]
[EventCountry "FRA"]
[SourceTitle "playchess.com"]
[Source "ChessBase"]
[SourceQuality "1"]
[TimeControl "40/5400+30:1800+30"]

1. e4 {[%emt 0:03:46]} e5 {[%emt 0:03:56]} 2. Nf3 {[%emt 0:00:06]} Nc6 {[%emt 0:02:04]} 3. Bb5 {[%emt 0:00:09]} Nge7 {[%emt 0:00:22]} 4. Nc3 {[%emt 0:00:50]} Ng6 {[%emt 0:01:01]} 5. d4 {[%emt 0:00:39]} Nxd4 {[%emt 0:00:36]} 6. Nxd4 {[%emt 0:00:08]} exd4 {[%emt 0:00:07]} 7. Qxd4 {[%emt 0:00:05]} c6 {[%emt 0:00:34]} 8. Be2 {[%emt 0:00:07]} Qb6 {[%emt 0:00:10]} 9. Qd3 {[%emt 0:00:25]} Be7 {[%emt 0:00:35]} 10. O-O {[%emt 0:00:13]} O-O {[%emt 0:00:23]} 11. a4 {[%emt 0:00:29]} d6 {[%emt 0:00:38]} 12. a5 {[%emt 0:00:48]} Qc7 {[%emt 0:00:19]} 13. f4 {[%emt 0:00:48]} f5 {[%emt 0:11:04]} 14. Qc4+ {[%emt 0:05:43]} Kh8 {[%emt 0:01:13]} 15. Nd5 {[%emt 0:00:18]} Qd7 {[%emt 0:00:53]} 16. Nxe7 {[%emt 0:01:00]} Qxe7 {[%emt 0:00:07]} 17. Bd3 {[%emt 0:05:02]} fxe4 {[%emt 0:04:16]} 18. Qxe4 {[%emt 0:00:12]} Bf5 {[%emt 0:00:50]} 19. Qxe7 {[%emt 0:03:07]} Nxe7 {[%emt 0:00:04]} 20. Rd1 {[%emt 0:08:44]} Rae8 {[%emt 0:02:42]} 21. Ra4 {[%emt 0:05:34]} Bxd3 {[%emt 0:16:40]} 22. Rxd3 {[%emt 0:01:07]} Nf5 {[%emt 0:01:07]} 23. Bd2 {[%emt 0:06:04]} d5 {[%emt 0:09:01]} 24. b3 {[%emt 0:05:34]} Re2 {[%emt 0:12:17]} 25. Kf1 {[%emt 0:00:24]} Rfe8 {[%emt 0:00:42]} 26. c4 {[%emt 0:09:45]} d4 {[%emt 0:06:30]} 27. c5 {[%emt 0:01:47]} h5 {[%emt 0:13:11]} 28. a6 {[%emt 0:01:20]} bxa6 {[%emt 0:00:10]} 29. Rxa6 {[%emt 0:00:05]} Nh4 {[%emt 0:00:36]} 30. Rxa7 {[%emt 0:06:06]} Rxg2 {[%emt 0:00:47]} 31. Be1 {[%emt 0:04:04]} Rxh2 {[%emt 0:01:47]} 32. Bxh4 {[%emt 0:10:33]} Rxh4 {[%emt 0:00:02]} 33. Rxd4 {[%emt 0:00:05]} Re3 {[%emt 0:00:55]} 34. b4 {[%emt 0:05:54]} Rf3+ {[%emt 0:00:24]} 35. Kg2 {[%emt 0:00:04]} Rfxf4 {[%emt 0:00:46]} 36. Rxf4 {[%emt 0:00:03]} Rxf4 {[%emt 0:00:10]} 37. Rb7 {[%emt 0:00:18]} Kh7 {[%emt 0:00:56]} 38. Rb6 {[%emt 0:01:05]} g6 {[%emt 0:00:55]} 39. Rxc6 {[%emt 0:01:42]} Rxb4 {[%emt 0:00:42]} 40. Rc8 {[%emt 0:00:45]} Rb3 {[%emt 0:01:23]} 41. c6 {[%emt 0:30:12]} Rc3 {[%emt 0:30:41]} 42. c7 {[%emt 0:00:05]} g5 {[%emt 0:00:37]} 43. Kh2 {[%emt 0:02:42]} h4 {[%emt 0:03:01]} 44. Kg2 {[%emt 0:00:04]} g4 {[%emt 0:00:23]} 45. Kh2 {[%emt 0:00:39]} Rc2+ {[%emt 0:03:03]} 46. Kg1 {[%emt 0:01:31]} Rc1+ {[%emt 0:00:00]} 47. Kh2 {[%emt 0:00:00]} Rc2+ {[%emt 0:00:00]} 48. Kg1 {[%emt 0:00:00]} g3 {[%emt 0:00:00]} 49. Rd8 {[%emt 0:00:00]} Rxc7 {[%emt 0:00:00]} 50. Rd4 {[%emt 0:00:00]} Rc1+ {[%emt 0:00:00]} 51. Kg2 {[%emt 0:00:00]} Rc2+ {[%emt 0:00:00]} 52. Kg1 {[%emt 0:00:00]} Rh2 {[%emt 0:00:00]} 53. Rd6 {[%emt 0:00:00]} Kg7 {[%emt 0:00:00]} 54. Ra6 {[%emt 0:00:00]} Kf7 {[%emt 0:00:00]} 55. Rh6 {[%emt 0:00:00]} Ke7 {[%emt 0:00:00]} 56. Rg6 {[%emt 0:00:00]} Kf8 {[%emt 0:00:00]} 57. Rf6+ {[%emt 0:00:00]} Ke8 {[%emt 0:00:00]} 58. Re6+ {[%emt 0:00:00]} Kd7 {[%emt 0:00:00]} 59. Rh6 {[%emt 0:00:00]} Ke7 {[%emt 0:00:00]} 60. Rg6 {[%emt 0:00:00]} Kf7 {[%emt 0:00:30]} 61. Rh6 {[%emt 0:00:00]} h3 {[%emt 0:04:24]} 62. Rh4 {[%emt 0:00:00]} Kf6 {[%emt 0:00:11]} 63. Rg4 {[%emt 0:00:00]} Rg2+ {[%emt 0:00:08]} 64. Kh1 {[%emt 0:00:00]} Kf5 {[%emt 0:00:11]} 65. Rf4+ {[%emt 0:00:00]} Kxf4 {[%emt 0:00:06]} 1/2-1/2

[Event "FIJ Cannes 2024"]
[Site "Cannes"]
[Date "2024.02.21"]
[Round "4.4"]
[White "Roux, Baptiste"]
[Black "Chen, Qi b"]
[Result "1/2-1/2"]
[ECO "C73"]
[WhiteElo "2331"]
[BlackElo "2467"]
[Annotator "RC"]
[PlyCount "63"]
[EventDate "2024.02.20"]
[EventType "swiss"]
[EventCountry "FRA"]
[SourceTitle "playchess.com"]
[Source "ChessBase"]
[SourceQuality "1"]
[TimeControl "40/5400+30:1800+30"]

1. e4 {[%emt 0:00:04]} e5 {[%emt 0:00:09]} 2. Nf3 {[%emt 0:00:07]} Nc6 {[%emt 0:00:03]} 3. Bb5 {[%emt 0:00:06]} a6 {[%emt 0:00:11]} 4. Ba4 {[%emt 0:00:08]} d6 {[%emt 0:00:20]} 5. Bxc6+ {[%emt 0:03:06]} bxc6 {[%emt 0:00:04]} 6. d4 {[%emt 0:00:04]} exd4 {[%emt 0:02:27]} 7. Qxd4 {[%emt 0:01:05]} c5 {[%emt 0:07:40]} 8. Qd3 {[%emt 0:03:04]} Nf6 {[%emt 0:01:37]} 9. O-O {[%emt 0:03:22]} Be7 {[%emt 0:02:17]} 10. Re1 {[%emt 0:09:07]} O-O {[%emt 0:01:55]} 11. b3 {[%emt 0:06:20]} Re8 {[%emt 0:09:11]} 12. Bb2 {[%emt 0:02:54]} Bb7 {[%emt 0:00:51]} 13. Nbd2 {[%emt 0:03:05]} Bf8 {[%emt 0:02:58]} 14. Rad1 {[%emt 0:03:21]} h6 {[%emt 0:09:47]} 15. e5 {[%emt 0:11:04]} Nd5 {[%emt 0:04:29]} 16. c4 {[%emt 0:03:13]} Nb4 {[%emt 0:14:38]} 17. Qb1 {[%emt 0:00:44]} Qc8 {[%emt 0:02:41]} 18. h3 {[%emt 0:05:18]} Nc6 {[%emt 0:04:08]} 19. Nf1 {[%emt 0:08:39]} a5 {[%emt 0:05:30]} 20. Ng3 {[%emt 0:01:17]} dxe5 {[%emt 0:01:49]} 21. Nxe5 {[%emt 0:01:03]} Nxe5 {[%emt 0:00:04]} 22. Bxe5 {[%emt 0:01:56]} Ra6 {[%emt 0:00:39]} 23. Qf5 {[%emt 0:06:47]} Rae6 {[%emt 0:05:11]} 24. Bc3 {[%emt 0:03:29]} Rxe1+ {[%emt 0:00:10]} 25. Rxe1 {[%emt 0:00:06]} Rxe1+ {[%emt 0:00:54]} 26. Bxe1 {[%emt 0:00:01]} Qa8 {[%emt 0:00:06]} 27. Qg4 {[%emt 0:06:52]} a4 {[%emt 0:03:54]} 28. Bc3 {[%emt 0:02:41]} Bc8 {[%emt 0:01:30]} 29. Qe4 {[%emt 0:03:09]} Bb7 {[%emt 0:02:12]} 30. Qg4 {[%emt 0:00:06]} Bc8 {[%emt 0:00:19]} 31. Qe4 {[%emt 0:00:05]} Bb7 {[%emt 0:00:35]} 32. Qg4 {[%emt 0:00:06]} 1/2-1/2

[Event "FIJ Cannes 2024"]
[Site "Cannes"]
[Date "2024.02.21"]
[Round "4.5"]
[White "Delaplace, Mathias"]
[Black "Chapon, Jean-Alexis"]
[Result "0-1"]
[ECO "B02"]
[WhiteElo "1975"]
[BlackElo "2039"]
[Annotator "NA RC"]
[PlyCount "76"]
[EventDate "2024.02.20"]
[EventType "swiss"]
[EventCountry "FRA"]
[SourceTitle "playchess.com"]
[Source "ChessBase"]
[SourceQuality "1"]
[TimeControl "40/5400+30:1800+30"]

1. e4 {[%emt 1:31:00]} Nf6 {[%emt 1:31:00]} 2. Nc3 {[%emt 0:00:30]} d5 {[%emt 0:00:30]} 3. exd5 {[%emt 0:00:30]} Nxd5 {[%emt 0:00:30]} 4. Nf3 c6 {[%emt 0:00:30]} 5. d4 {[%emt 0:01:00]} Bg4 {[%emt 0:00:30]} 6. h3 {[%emt 0:00:30]} Bh5 {[%emt 0:00:30]} 7. Nxd5 {[%emt 0:00:30]} cxd5 {[%emt 0:00:30]} 8. Bb5+ {[%emt 0:00:30]} Nc6 {[%emt 0:00:30]} 9. c3 {[%emt 0:00:30]} Bxf3 {[%emt 0:00:30]} 10. Qxf3 {[%emt 0:00:30]} e6 {[%emt 0:00:30]} 11. O-O {[%emt 0:00:30]} Be7 {[%emt 0:00:30]} 12. Bd3 {[%emt 0:00:30]} O-O {[%emt 0:00:30]} 13. g3 {[%emt 0:00:30]} g6 {[%emt 0:00:30]} 14. h4 {[%emt 0:00:30]} e5 {[%emt 0:00:30]} 15. dxe5 {[%emt 0:00:30]} Nxe5 {[%emt 0:00:30]} 16. Qe2 {[%emt 0:00:30]} Bf6 {[%emt 0:00:30]} 17. Bf4 {[%emt 0:00:30]} Re8 {[%emt 0:00:30]} 18. Rfe1 {[%emt 0:00:30]} Qb6 {[%emt 0:00:30]} 19. Be3 {[%emt 0:00:30]} Nxd3 {[%emt 0:00:30]} 20. Bxb6 {[%emt 0:00:30]} Rxe2 {[%emt 0:00:30]} 21. Rxe2 {[%emt 0:00:30]} axb6 {[%emt 0:00:30]} 22. Rd1 {[%emt 0:00:30]} Ne5 {[%emt 0:00:30]} 23. Rxd5 {[%emt 0:00:30]} Nc6 {[%emt 0:00:30]} 24. Rb5 {[%emt 0:00:30]} Ra6 {[%emt 0:00:30]} 25. a3 {[%emt 0:00:30]} Kf8 {[%emt 0:00:30]} 26. Rd5 {[%emt 0:00:30]} Ra8 {[%emt 0:00:30]} 27. Rd7 {[%emt 0:00:30]} Rb8 {[%emt 0:00:30]} 28. Re4 {[%emt 0:00:30]} h5 {[%emt 0:00:30]} 29. f4 {[%emt 0:00:30]} Be7 {[%emt 0:00:30]} 30. Kg2 {[%emt 0:00:30]} Ke8 {[%emt 0:00:30]} 31. Rd5 {[%emt 0:00:30]} Kf8 {[%emt 0:00:30]} 32. f5 {[%emt 0:00:30]} Rd8 {[%emt 0:00:30]} 33. c4 {[%emt 0:00:30]} Bf6 {[%emt 0:00:30]} 34. Rxd8+ {[%emt 0:00:30]} Nxd8 {[%emt 0:00:30]} 35. fxg6 {[%emt 0:00:30]} fxg6 {[%emt 0:00:30]} 36. b4 {[%emt 0:00:30]} Kf7 {[%emt 0:00:30]} 37. Kf3 {[%emt 0:00:30]} Nc6 {[%emt 0:00:30]} 38. Re2 {[%emt 0:00:30]} Nd4+ {[%emt 0:00:30]} 0-1

[Event "FIJ Cannes 2024"]
[Site "Cannes"]
[Date "2024.02.21"]
[Round "4.6"]
[White "Magakelov, Daniel"]
[Black "Roberts, Tallulah"]
[Result "0-1"]
[ECO "C19"]
[WhiteElo "1253"]
[BlackElo "1488"]
[Annotator "NA RC"]
[PlyCount "90"]
[EventDate "2024.02.20"]
[EventType "swiss"]
[EventCountry "FRA"]
[SourceTitle "playchess.com"]
[Source "ChessBase"]
[SourceQuality "1"]
[TimeControl "40/5400+30:1800+30"]

1. e4 {[%emt 0:00:01]} e6 {[%emt 0:00:01]} 2. d4 {[%emt 0:00:07]} d5 {[%emt 0:00:02]} 3. Nc3 {[%emt 0:00:08]} Bb4 {[%emt 0:00:02]} 4. e5 {[%emt 0:00:06]} c5 {[%emt 0:00:06]} 5. a3 {[%emt 0:00:03]} Bxc3+ {[%emt 0:00:02]} 6. bxc3 {[%emt 0:00:07]} Qa5 {[%emt 0:00:07]} 7. Bd2 {[%emt 0:00:38]} Qa4 {[%emt 0:00:04]} 8. Bd3 {[%emt 0:01:27]} c4 {[%emt 0:00:08]} 9. Be2 {[%emt 0:01:54]} Nc6 {[%emt 0:00:54]} 10. Nf3 {[%emt 0:01:17]} Nge7 {[%emt 0:00:44]} 11. O-O {[%emt 0:03:05]} Bd7 {[%emt 0:01:10]} 12. Qb1 {[%emt 0:03:06]} O-O-O {[%emt 0:02:49]} 13. Qa2 {[%emt 0:06:48]} Rdf8 {[%emt 0:04:05]} 14. Bf4 {[%emt 0:07:40]} h6 {[%emt 0:05:26]} 15. h4 {[%emt 0:09:25]} Nf5 {[%emt 0:20:29]} 16. g3 {[%emt 0:05:59]} Rhg8 {[%emt 0:15:45]} 17. Nh2 {[%emt 0:10:38]} Qa5 {[%emt 0:14:50]} 18. Qb2 {[%emt 0:05:28]} f6 {[%emt 0:03:07]} 19. exf6 {[%emt 0:02:53]} gxf6 {[%emt 0:02:26]} 20. Bg4 {[%emt 0:02:28]} Nxh4 {[%emt 0:05:04]} 21. Bxh6 {[%emt 0:06:35]} Rf7 {[%emt 0:05:59]} 22. gxh4 {[%emt 0:06:43]} Rh7 {[%emt 0:02:27]} 23. Bf4 {[%emt 0:02:43]} e5 {[%emt 0:01:55]} 24. Kh1 {[%emt 0:06:51]} Bxg4 {[%emt 0:01:41]} 25. Bg3 {[%emt 0:03:09]} Bf5 {[%emt 0:04:50]} 26. Rfe1 {[%emt 0:04:43]} Qc7 {[%emt 0:01:24]} 27. Rg1 {[%emt 0:02:14]} Qf7 {[%emt 0:03:30]} 28. Rae1 {[%emt 0:01:04]} e4 {[%emt 0:01:35]} 29. Qc1 {[%emt 0:02:48]} Be6 {[%emt 0:01:06]} 30. Qf4 {[%emt 0:01:03]} Rgh8 {[%emt 0:01:37]} 31. Ng4 {[%emt 0:01:28]} Rxh4+ {[%emt 0:00:36]} 32. Bh2 {[%emt 0:01:43]} Bxg4 {[%emt 0:00:19]} 33. Rxg4 {[%emt 0:02:38]} Rxh2+ {[%emt 0:00:21]} 34. Qxh2 {[%emt 0:00:00]} Rxh2+ {[%emt 0:00:05]} 35. Kxh2 {[%emt 0:00:00]} Qh5+ {[%emt 0:00:19]} 36. Kg3 {[%emt 0:00:00]} f5 {[%emt 0:01:30]} 37. Rg8+ {[%emt 0:00:11]} Kd7 {[%emt 0:00:58]} 38. Rg7+ {[%emt 0:00:37]} Ne7 {[%emt 0:00:15]} 39. Rb1 {[%emt 0:00:17]} b6 {[%emt 0:00:13]} 40. Rb5 {[%emt 0:00:07]} Qf3+ {[%emt 0:00:29]} 41. Kh4 {[%emt 0:30:12]} Qxf2+ {[%emt 0:30:09]} 42. Kg5 {[%emt 0:00:05]} Qg3+ {[%emt 0:01:09]} 43. Kf6 {[%emt 0:00:20]} Qd6+ {[%emt 0:01:29]} 44. Kg5 {[%emt 0:00:49]} e3 {[%emt 0:00:35]} 45. Rh7 {[%emt 0:00:22]} Qg6+ {[%emt 0:00:17]} 0-1

[Event "FIJ Cannes 2024"]
[Site "Cannes"]
[Date "2024.02.22"]
[Round "5.1"]
[White "Puranik, Abhimanyu"]
[Black "Zhao, Yuanhe"]
[Result "1-0"]
[ECO "C42"]
[WhiteElo "2645"]
[BlackElo "2449"]
[Annotator "TA"]
[PlyCount "87"]
[EventDate "2024.02.20"]
[EventType "swiss"]
[EventCountry "FRA"]
[SourceTitle "playchess.com"]
[Source "ChessBase"]
[SourceQuality "1"]
[TimeControl "40/5400+30:1800+30"]

{[%evp 18,87,24,12,15,16,21,22,26,21,24,8,12,15,17,12,78,48,49,10,42,0,0,0,0,0,0,0,0,0,0,-79,-19,-74,68,58,813,813,795,795,777,777,29997,770,762,759,703,678,688,688,671,651,645,671,954,947,942,948,947,917,29972,29973,29983,29982,29982,29983,29981,936,29979,29977,29982,29983]} 1. e4 {[%emt 0:00:06]} e5 {[%emt 0:00:30]} 2. Nf3 {[%emt 0:00:04]} Nf6 {[%emt 0:00:06]} 3. Nxe5 {[%emt 0:00:29]} d6 {[%emt 0:00:13]} 4. Nf3 {[%emt 0:00:04]} Nxe4 {[%emt 0:00:07]} 5. d4 {[%emt 0:00:05]} d5 {[%emt 0:00:30]} 6. Bd3 {[%emt 0:00:14]} Bd6 {[%emt 0:00:59]} 7. O-O {[%emt 0:00:21]} O-O {[%emt 0:00:32]} 8. c4 {[%emt 0:00:03]} c6 {[%emt 0:00:05]} 9. Re1 {[%emt 0:00:40]} Bf5 {[%emt 0:05:57]} 10. Qb3 {[%emt 0:00:57]} (10. Nc3 {simplifies} Nxc3 11. bxc3 Bxd3 12. Qxd3 dxc4 13. Qxc4 Qc7 14. Qe2) 10... Na6 {[%emt 0:04:34]} 11. cxd5 {[%emt 0:01:41]} (11. Qxb7 $2 {too greedy.} Nb4 12. c5 Rb8 (12... Nxd3 $2 13. cxd6 Nxd6 14. Qb3 $19) 13. Qxa7 Nxd3 14. cxd6 Nxe1 (14... Nexf2 $2 15. Bg5 $17) 15. Nxe1 Qxd6 $19 (15... Nxd6 $2 16. Nf3 $19)) 11... cxd5 {[%emt 0:01:03]} 12. Nc3 {[%emt 0:00:13]} Nb4 {[%emt 0:13:48] The position is equal.} 13. Bxe4 {[%emt 0:00:05]} dxe4 {[%emt 0:01:10]} 14. Bg5 {[%emt 0:00:23]} Qd7 {[%emt 0:09:27]} 15. Nxe4 {[%emt 0:00:46]} Be6 {[%emt 0:00:35] This pair of bishops is nice.} 16. Qa3 {[%emt 0:00:14] Nxd6 is the strong threat.} Rfe8 {[%emt 0:14:59]} (16... f6 $11 {remains equal.} 17. Bd2 a5) 17. Rac1 {[%emt 0:09:16] aiming for Ne5.} Bf8 {[%emt 0:02:48]} 18. Ne5 {[%emt 0:09:31] Black is weak on the dark squares} Qd5 {[%emt 0:14:32]} 19. Bd2 {[%emt 0:21:28]} (19. Qg3 $5 Bf5 $8 20. Qf3 Bxe4 21. Rxe4 $14) 19... Nxa2 {[%emt 0:05:56]} 20. Qg3 {[%emt 0:00:24]} Kh8 $1 {[%emt 0:01:47]} 21. Rc7 {[%emt 0:00:06] Threatens to win with Ng5.} Re7 $1 {[%emt 0:04:59]} 22. Rc5 {[%emt 0:16:31]} Qxd4 {[%emt 0:00:15]} 23. Nf3 {[%emt 0:00:48]} Qxb2 {[%emt 0:05:20]} 24. Rh5 {[%emt 0:01:03]} (24. Re5 $11 h6 25. Bg5) 24... f6 $1 $17 {[%emt 0:06:26] White must now prevent ...Bf7.} 25. Nh4 {[%emt 0:04:04]} (25. Nd6 $1 $11 Qc2 26. Rxe6 Rxe6 27. Nf7+ Kg8 28. Nh6+ Kh8 29. Nf7+ Kg8 30. Nh6+ Kh8 31. Nf7+) 25... Bf7 {[%emt 0:00:51]} ({Better is} 25... Kg8 $17 {...Bf7 would now be deadly.} 26. Ng6 hxg6 27. Qxg6 Rd8) 26. Ng6+ $40 {[%emt 0:00:52][%mdl 128] White mounts an attack.} Bxg6 $4 {[%emt 0:00:04][%mdl 8192] This costs Black the game.} (26... Kg8 $14 27. Nxe7+ Bxe7) 27. Qxg6 $18 {[%emt 0:00:03]} h6 {[%emt 0:00:03] [#]} 28. Rxh6+ $1 {[%emt 0:01:01][%mdl 512]} gxh6 {[%emt 0:01:11] [#]} 29. Nxf6 $1 {[%emt 0:00:03][%csl Gf6][%cal Rg6g8]} Rxe1+ {[%emt 0:01:51]} 30. Bxe1 {[%emt 0:00:03][%csl Gf6][%cal Rg6h7]} Qxf6 {[%emt 0:00:03]} 31. Qxf6+ {[%emt 0:00:03]} Bg7 {[%emt 0:00:04]} 32. Qf7 {[%emt 0:00:15]} Nc3 {[%emt 0:00:06]} 33. Bxc3 {[%emt 0:03:54]} Bxc3 {[%emt 0:00:04]} 34. Qxb7 {[%emt 0:00:05][%mdl 4096] Endgame. KQ-KRB} Rd8 {[%emt 0:00:45][%cal Rd8d1]} 35. g4 {[%emt 0:00:34]} (35. Qxa7 $2 Rd1#) 35... Bd4 {[%emt 0:00:17]} 36. Qc6 {[%emt 0:01:15]} Bg7 {[%emt 0:00:07]} 37. h4 {[%emt 0:00:27][%cal Bh2h4,Bh4g5][%mdl 32]} a5 {[%emt 0:00:04]} 38. g5 {[%emt 0:01:55]} hxg5 {[%emt 0:00:05]} 39. hxg5 {[%emt 0:00:03]} Rd4 {[%emt 0:01:28]} 40. Qc8+ {[%emt 0:02:53]} Kh7 {[%emt 0:00:04]} 41. Qf5+ {[%emt 0:30:04]} Kg8 {[%emt 0:30:10]} 42. Qxa5 {[%emt 0:01:30]} (42. g6 $142 Rd8 43. Qxa5 Rb8 44. Qa7 Rc8 45. Qe3 (45. Qf7+ Kh8 $18) 45... Ra8 46. Qc5 Rb8 47. Qc7) 42... Rf4 {[%emt 0:00:03]} 43. Kg2 {[%emt 0:00:38]} Kh7 {[%emt 0:00:13]} 44. Kg3 {[%emt 0:00:15] Weighted Error Value: White=0.16 (very precise) /Black=0.58.  Loses game:     	---       	Black=1      Mistake:       	White=2     	Black=2      Inaccurate:     	White=3     	Black=1      OK:         	White=7     	Black=7      Best:        	White=1     	---        Strong:       	---       	Black=3} 1-0